fUSD/lending_fUSD_20260122
["ID","MTS","AMOUNT","RATE_DAILY","PERIOD"]
[403027797,1769083844323,-151.0,0.00017444,2]
[403027798,1769083844333,-218.76593487,0.000179,2]
[403027799,1769083844343,-150.0,0.00024658,2]
[403027800,1769083844352,-4988.2070312,0.000249,2]
[403027801,1769083844362,-222.0,0.00024908,2]
[403027802,1769083844371,-222.0,0.00024922,2]
[403027803,1769083844382,-4454.0,0.00024939,2]
[403027804,1769083844391,-222.0,0.00024949,2]
[403027805,1769083844401,-151.82,0.00025061,2]
[403027806,1769083844411,-150.33,0.00025171,30]
[403027807,1769083844420,-155.0,0.00025199,2]
[403027808,1769083844430,-222.0,0.0002524,2]
[403027809,1769083844439,-151.3,0.0002529,2]
[403027810,1769083844449,-9283.05787863,0.000253,2]
[403027811,1769083844460,-2386.97270748,0.000253,2]
[403027816,1769083846626,-7415.94707886,0.00017725,2]
[403027817,1769083846676,-332.818322,0.00017725,2]
[403027819,1769083879634,-188.4327386,0.00016067,2]
[403027820,1769083883721,-174.33941195,0.00016067,2]
[403027823,1769084016704,500.0,0.000159,5]
[403027824,1769084021737,10000.01,0.00016067,2]
[403027825,1769084021759,9975.11626531,0.00016067,2]
[403027844,1769084406713,284.0,0.00016067,2]
[403027846,1769084435173,-58.40254945,0.00016067,2]
[403027847,1769084435198,-241.73217577,0.00016138,2]
[403027848,1769084450432,-405.15180338,0.000161,2]
[403027852,1769084453103,-228.01290191,0.000161,2]
[403027853,1769084456349,-163.1839078,0.000161,2]
[403027854,1769084461223,-166.71859657,0.000161,2]
[403027855,1769084465056,-248.60040813,0.000161,2]
[403027856,1769084470712,-280.24673508,0.000161,2]
[403027857,1769084472790,-164.74064713,0.000161,2]
[403027858,1769084472811,-217.22059202,0.00016138,2]
[403027859,1769084492569,1577.912,0.00015876,2]
[403027866,1769084676072,-112.55305843,0.00016138,2]
[403027867,1769084676096,-64.31417417,0.00016138,2]
[403027868,1769084677820,-252.85258151,0.00016138,2]
[403027869,1769084679896,-183.86301736,0.00016138,2]
[403027870,1769084685225,-482.81304744,0.00016138,2]
[403027871,1769084687398,-257.03806775,0.00016138,2]
[403027872,1769084689497,-385.47447946,0.00016138,2]
[403027873,1769084692332,-333.12615461,0.00016138,2]
[403027874,1769084695623,-165.55834094,0.00016138,2]
[403027875,1769084701637,-289.00083386,0.00016137,2]
[403027877,1769084704104,-187.64021808,0.00016137,2]
[403027878,1769084709404,-450.22627817,0.00016137,2]
[403027879,1769084711429,-206.69690622,0.00016137,2]
[403027880,1769084717896,-66.43576367,0.00016137,2]
[403027881,1769084717920,-161.94720577,0.00016138,2]
[403027884,1769084719326,-224.9970293,0.00016138,2]
[403027885,1769084725041,-199.3975938,0.00016138,2]
[403027886,1769084727109,-427.90758935,0.00016138,2]
[403027887,1769084733470,-244.2133375,0.00016138,2]
[403027888,1769084736080,-166.4942519,0.00016138,2]
[403027889,1769084740280,-213.62198582,0.00016138,2]
[403027890,1769084742350,-353.37159472,0.00016138,2]
[403027891,1769084743330,-333.63861146,0.00016138,2]
[403027892,1769084749465,-275.13674241,0.00016138,2]
[403027893,1769084752200,-190.08630027,0.00016138,2]
[403027894,1769084754805,-176.79782439,0.00016138,2]
[403027895,1769084756383,-253.87860884,0.00016138,2]
[403027896,1769084759269,-297.20141665,0.00016138,2]
[403027897,1769084764453,-300.0,0.00016137,2]
[403027898,1769084764476,-60.67950458,0.00016138,2]
[403027899,1769084766027,-297.02273188,0.00016138,2]
[403027900,1769084767550,-313.32888976,0.00016138,2]
[403027902,1769084772174,-180.14659574,0.00016138,2]
[403027903,1769084773754,-285.04979101,0.00016138,2]
[403027904,1769084775603,-316.13698264,0.00016138,2]
[403027905,1769084780918,-473.66195779,0.00016138,2]
[403027906,1769084783026,-432.12825019,0.00016138,2]
[403027907,1769084788492,-405.0,0.00016138,2]
[403027908,1769084790082,-199.92045607,0.00016138,2]
[403027909,1769084791705,-255.88840929,0.00016138,2]
[403027910,1769084796843,-187.04670374,0.00016138,2]
[403027911,1769084798319,-899.12809329,0.00016138,2]
[403027912,1769084804135,-268.1609877,0.00016138,2]
[403027913,1769084806286,-317.24211769,0.00016138,2]
[403027914,1769084813152,-367.24701594,0.00016138,2]
[403027915,1769084814680,-300.0,0.00016138,2]
[403027916,1769084820980,-285.51971993,0.00016138,2]
[403027917,1769084822423,-182.90205909,0.00016138,2]
[403027918,1769084829105,-290.48587819,0.00016138,2]
[403027919,1769084829924,900.0,0.000159,5]
[403027920,1769084831165,-324.57643202,0.00016138,2]
[403027922,1769084836507,-355.69797591,0.00016138,2]
[403027923,1769084838016,-196.80490656,0.00016138,2]
[403027924,1769084839557,-346.90915073,0.00016138,2]
[403027925,1769084844295,-211.35592782,0.00016138,2]
[403027926,1769084846298,-236.39367648,0.00016138,2]
[403027927,1769084854947,-217.05187497,0.00016138,2]
[403027928,1769084860667,-222.84735836,0.00016138,2]
[403027929,1769084863161,-236.8865675,0.00016138,2]
[403027931,1769084868776,-211.27492665,0.00016073,2]
[403027932,1769084871028,-240.68893856,0.00016073,2]
[403027933,1769084876368,-312.35978192,0.00016073,2]
[403027934,1769084879683,-188.37172442,0.00016073,2]
[403027935,1769084886610,-293.9178257,0.00016073,2]
[403027936,1769084892015,-365.18271742,0.00016073,2]
[403027937,1769084894137,-182.4341895,0.00016073,2]
[403027939,1769084900668,-288.33457655,0.00016073,2]
[403027940,1769084903363,-253.18695294,0.00016073,2]
[403027946,1769084909155,-210.16363546,0.00016073,2]
[403027947,1769084911534,-237.60161812,0.00016073,2]
[403027948,1769084916646,-275.80053399,0.00016073,2]
[403027949,1769084919233,-166.66,0.00016073,2]
[403027952,1769084921123,-209.78581975,0.00016073,2]
[403027953,1769084922808,-340.09258437,0.00016073,2]
[403027954,1769084925450,-272.09241065,0.00016073,2]
[403027957,1769084927791,-280.27723558,0.00016073,2]
[403027958,1769084932439,-344.33935801,0.00016073,2]
[403027960,1769084934078,-254.51757795,0.00016073,2]
[403027961,1769084936626,-184.00139913,0.00016073,2]
[403027962,1769084941129,-195.98,0.00016073,2]
[403027963,1769084943739,-152.63185,0.00016073,2]
[403027964,1769084946966,-386.21087292,0.00016073,2]
[403027965,1769084950357,-428.19703787,0.00016073,2]
[403027966,1769084953020,-202.97204716,0.00016073,2]
[403027967,1769084955143,-396.00748972,0.00016073,2]
[403027968,1769084958970,-344.39196226,0.00016073,2]
[403027969,1769084962340,-171.73004629,0.00016073,2]
[403027970,1769084963783,-173.26668354,0.00016073,2]
[403027971,1769084965266,-295.39932112,0.00016073,2]
[403027972,1769084967558,-410.17144493,0.00016073,2]
[403027973,1769084969735,-300.0,0.00016073,2]
[403027974,1769084971859,-195.0,0.00016073,2]
[403027975,1769084973908,-35.38646415,0.00016073,2]
[403027976,1769084973931,-225.63172727,0.00016107,2]
[403027977,1769084976970,-149.02638223,0.00016107,2]
[403027978,1769084976994,-151.41598863,0.00016137,2]
[403027979,1769084978463,-166.59763096,0.00016137,2]
[403027981,1769084979840,-500.0,0.00016137,2]
[403027982,1769084981878,-250.0,0.00016137,2]
[403027983,1769084983338,-131.98638041,0.00016137,2]
[403027984,1769084983363,-50.91961162,0.00016137,2]
[403027985,1769084989571,-249.08038838,0.00016137,2]
[403027986,1769084989595,-49.29876223,0.00016137,2]
[403027990,1769084991627,-173.03357592,0.00016137,2]
[403027992,1769084993657,-199.81268958,0.00016137,2]
[403027993,1769084995206,-77.85497227,0.00016137,2]
[403027994,1769084995231,-199.02917406,0.00016137,2]
[403027995,1769084995276,8138.098,0.00016038,2]
[403027996,1769084995299,10000.01,0.00016038,2]
[403027997,1769084995324,10000.01,0.00016038,2]
[403027998,1769084995348,10000.01,0.00016038,2]
[403027999,1769084995372,10000.01,0.00016038,2]
[403028000,1769084995395,10000.01,0.00016038,2]
[403028001,1769084995419,3778.67646091,0.00016038,2]
[403028002,1769084995441,10000.0,0.00016038,2]
[403028003,1769084995461,10000.0,0.00016038,2]
[403028004,1769084995484,10000.0,0.00016038,2]
[403028005,1769084995505,10000.0,0.00016038,2]
[403028006,1769084995527,10000.0,0.00016038,2]
[403028007,1769084995548,10000.0,0.00016038,2]
[403028008,1769084995569,10000.0,0.00016038,2]
[403028009,1769084995590,10000.0,0.00016038,2]
[403028010,1769084995612,10000.0,0.00016038,2]
[403028011,1769084995633,10000.0,0.00016038,2]
[403028012,1769084995654,10000.0,0.00016038,2]
[403028013,1769084995674,10000.0,0.00016038,2]
[403028014,1769084995695,10000.0,0.00016038,2]
[403028015,1769084995720,10000.01,0.00016038,2]
[403028016,1769084995743,10000.01,0.00016038,2]
[403028017,1769084995766,10000.01,0.00016038,2]
[403028018,1769084995790,10000.01,0.00016038,2]
[403028021,1769084998898,-324.22602548,0.00016038,2]
[403028023,1769085002672,-290.23870878,0.00016037,2]
[403028024,1769085006122,-9.76129122,0.00016037,2]
[403028025,1769085006145,-293.59584785,0.00016037,2]
[403028026,1769085011303,-161.30683598,0.00016028,2]
[403028027,1769085014409,-28.97316402,0.00016028,2]
[403028028,1769085014431,-130.80544029,0.00016028,2]
[403028029,1769085016418,-346.09486793,0.00016028,2]
[403028030,1769085020323,-302.94127204,0.00016037,2]
[403028031,1769085022768,-327.80801527,0.00016037,2]
[403028032,1769085026634,-226.60191407,0.00016037,2]
[403028033,1769085029914,-49.05295077,0.00016037,2]
[403028034,1769085029936,-348.61826487,0.00016037,2]
[403028043,1769085031354,-201.38173513,0.00016037,2]
[403028044,1769085031364,-282.30064646,0.00016038,2]
[403028045,1769085031373,-568.48710794,0.00016038,2]
[403028046,1769085031383,-2554.14498459,0.00016038,2]
[403028047,1769085031394,-24184.55100271,0.00016038,2]
[403028048,1769085031512,-107299.95756903,0.00016038,2]
[403028049,1769085031523,-10117.38802823,0.00016038,2]
[403028066,1769085033547,-229.37692669,0.00016038,2]
[403028067,1769085035447,-307.0706343,0.00016038,2]
[403028071,1769085037465,-1563.61745328,0.00016038,2]
[403028072,1769085037477,-1362.74,0.00016038,2]
[403028073,1769085037489,-468.65796851,0.00016038,2]
[403028079,1769085037946,-260.25,0.00016038,2]
[403028080,1769085037958,-564.0886184,0.00016038,2]
[403028081,1769085037971,-11126.85270579,0.00016038,2]
[403028082,1769085037982,-3199.48917838,0.00016038,2]
[403028083,1769085037992,-4000.0,0.00016038,2]
[403028084,1769085038012,-165218.40174696,0.00016038,2]
[403028085,1769085038023,-1542.02172142,0.00016038,2]
[403028086,1769085038034,-9533.17266637,0.00016038,2]
[403028087,1769085038049,-424.42001937,0.00016038,2]
[403028088,1769085038060,-477.01024154,0.00016038,2]
[403028089,1769085038093,-192.72668896,0.00016038,2]
[403028090,1769085038184,-339.31095665,0.00016038,2]
[403028091,1769085038199,-422225.17329449,0.00016038,2]
[403028092,1769085038209,-1499.8265627,0.00016128,2]
[403028093,1769085038219,-300.97082594,0.00016137,2]
[403028094,1769085038228,-500.0,0.00016137,2]
[403028095,1769085038238,-500.0,0.00016137,2]
[403028096,1769085038248,-500.0,0.00016137,2]
[403028097,1769085038261,-500.0,0.00016137,2]
[403028098,1769085038271,-453.93770176,0.00016137,2]
[403028099,1769085038280,-500.0,0.00016137,2]
[403028100,1769085038289,-500.0,0.00016137,2]
[403028101,1769085038299,-500.0,0.00016137,2]
[403028102,1769085038309,-500.0,0.00016137,2]
[403028103,1769085038318,-500.0,0.00016137,2]
[403028104,1769085038328,-500.0,0.00016137,2]
[403028105,1769085038338,-500.0,0.00016137,2]
[403028106,1769085038347,-500.0,0.00016137,2]
[403028107,1769085038356,-500.0,0.00016137,2]
[403028108,1769085038367,-500.0,0.00016137,2]
[403028109,1769085038376,-471.41272653,0.00016137,2]
[403028110,1769085038385,-444633.5142558,0.00016138,2]
[403028111,1769085038394,-7417.895999,0.00016173,2]
[403028112,1769085038404,-500.0,0.0001619,2]
[403028113,1769085038413,-151.0,0.0001619,2]
[403028114,1769085038423,-151.0,0.0001619,2]
[403028115,1769085038433,-151.0,0.0001619,2]
[403028116,1769085038443,-151.0,0.0001619,2]
[403028117,1769085038452,-151.0,0.0001619,2]
[403028118,1769085038461,-151.0,0.0001619,2]
[403028119,1769085038470,-151.0,0.0001619,2]
[403028120,1769085038479,-200.0,0.0001619,2]
[403028121,1769085038488,-151.0,0.0001619,2]
[403028122,1769085038498,-151.0,0.0001619,2]
[403028123,1769085038508,-151.0,0.0001619,2]
[403028124,1769085038517,-151.0,0.0001619,2]
[403028125,1769085038526,-196.66172319,0.0001619,2]
[403028126,1769085038535,-500.0,0.0001619,2]
[403028127,1769085038544,-500.0,0.0001619,2]
[403028128,1769085038553,-500.0,0.0001619,2]
[403028129,1769085038562,-500.0,0.0001619,2]
[403028130,1769085038571,-500.0,0.0001619,2]
[403028131,1769085038580,-500.0,0.0001619,2]
[403028132,1769085038589,-303.55125424,0.0001619,2]
[403028133,1769085038599,-206.57,0.00016199,2]
[403028134,1769085038608,-150.0,0.00016199,2]
[403028135,1769085038618,-565.1769459,0.00016199,2]
[403028136,1769085038628,-256.5212138,0.00016199,2]
[403028137,1769085038638,-435.91029719,0.00016199,2]
[403028138,1769085038648,-500.0,0.00016199,2]
[403028139,1769085038657,-500.0,0.00016199,2]
[403028140,1769085038667,-500.0,0.00016199,2]
[403028141,1769085038676,-500.0,0.00016199,2]
[403028142,1769085038686,-636.54920827,0.00016199,2]
[403028143,1769085038695,-179.56484966,0.00016199,2]
[403028144,1769085038705,-179.56484966,0.00016199,2]
[403028145,1769085038715,-8798.42902656,0.00016276,2]
[403028146,1769085038724,-1493.0,0.00016438,2]
[403028147,1769085038734,-500.0,0.00016438,2]
[403028148,1769085038743,-500.0,0.00016438,2]
[403028149,1769085038752,-500.0,0.00016438,2]
[403028150,1769085038762,-500.0,0.00016438,2]
[403028151,1769085038772,-500.0,0.00016438,2]
[403028152,1769085038781,-500.0,0.00016438,2]
[403028153,1769085038791,-500.0,0.00016438,2]
[403028154,1769085038801,-500.0,0.00016438,2]
[403028155,1769085038811,-500.0,0.00016438,2]
[403028156,1769085038820,-500.0,0.00016438,2]
[403028157,1769085038829,-500.0,0.00016438,2]
[403028158,1769085038839,-500.0,0.00016438,2]
[403028159,1769085038849,-500.0,0.00016438,2]
[403028160,1769085038859,-228.84211137,0.00016438,2]
[403028161,1769085038868,-500.0,0.00016438,2]
[403028162,1769085038878,-500.0,0.00016438,2]
[403028163,1769085038887,-500.0,0.00016438,2]
[403028164,1769085038896,-500.0,0.00016438,2]
[403028165,1769085038906,-500.0,0.00016438,2]
[403028166,1769085038915,-500.0,0.00016438,2]
[403028167,1769085038925,-500.0,0.00016438,2]
[403028168,1769085038935,-1410.77109271,0.00016449,2]
[403028169,1769085038943,-8798.42902656,0.00016479,2]
[403028170,1769085038953,-500.0,0.00016498,2]
[403028171,1769085038962,-379.72968761,0.00016498,2]
[403028172,1769085038971,-500.0,0.00016498,2]
[403028173,1769085038981,-386.45682453,0.00016498,2]
[403028174,1769085038990,-505.96569646,0.00016498,2]
[403028175,1769085038999,-150.0,0.00016626,2]
[403028176,1769085039010,-500.0,0.00016626,2]
[403028177,1769085039019,-500.0,0.00016626,2]
[403028178,1769085039029,-150.0,0.00016626,2]
[403028179,1769085039039,-150.0,0.00016626,2]
[403028180,1769085039048,-150.0,0.00016626,2]
[403028181,1769085039057,-150.0,0.00016626,2]
[403028182,1769085039066,-150.0,0.00016626,2]
[403028183,1769085039075,-150.0,0.00016626,2]
[403028184,1769085039084,-150.0,0.00016626,2]
[403028185,1769085039094,-160.64543439,0.00016626,2]
[403028186,1769085039103,-151.0,0.00016641,2]
[403028187,1769085039112,-150.0,0.00016681,2]
[403028188,1769085039121,-500.0,0.00016681,2]
[403028189,1769085039130,-500.0,0.00016681,2]
[403028190,1769085039140,-150.0,0.00016681,2]
[403028191,1769085039150,-150.0,0.00016681,2]
[403028192,1769085039160,-150.0,0.00016681,2]
[403028193,1769085039169,-150.0,0.00016681,2]
[403028194,1769085039179,-8798.42902656,0.00016682,2]
[403028195,1769085039188,-1493.0,0.00016712,2]
[403028196,1769085039198,-164.8,0.00016712,2]
[403028197,1769085039208,-161.68383371,0.00016736,2]
[403028198,1769085039218,-197.42246964,0.00016736,2]
[403028199,1769085039228,-500.0,0.00016736,2]
[403028200,1769085039238,-150.0,0.00016736,2]
[403028202,1769085039247,-150.0,0.00016736,2]
[403028203,1769085039259,-150.0,0.00016736,2]
[403028204,1769085039268,-211.68961379,0.00016736,2]
[403028205,1769085039278,-500.0,0.00016738,2]
[403028206,1769085039287,-780.0,0.00016773,2]
[403028207,1769085039297,-500.0,0.0001679,2]
[403028208,1769085039306,-150.0,0.0001679,2]
[403028209,1769085039315,-234.60037435,0.0001679,2]
[403028210,1769085039324,-500.0,0.00016845,2]
[403028211,1769085039335,-150.0,0.00016845,2]
[403028212,1769085039344,-7649.15052315,0.00016863,2]
[403028213,1769085039354,-1000.0,0.00016875,2]
[403028214,1769085039364,-8798.42902656,0.00016885,2]
[403028215,1769085039373,-294.0,0.00016886,2]
[403028216,1769085039382,-500.0,0.000169,2]
[403028217,1769085039391,-250.0,0.000169,2]
[403028218,1769085039400,-500.0,0.000169,2]
[403028219,1769085039410,-500.0,0.000169,3]
[403028220,1769085039419,-500.0,0.000169,2]
[403028221,1769085039428,-3723.04723425,0.00016949,2]
[403028222,1769085039437,-6567.89662811,0.00016949,2]
[403028223,1769085039446,-9825.18055555,0.00016949,2]
[403028224,1769085039455,-13293.8091,0.00016949,2]
[403028225,1769085039464,-500.0,0.00016955,2]
[403028226,1769085039474,-150.0,0.00016974,2]
[403028227,1769085039483,-150.0,0.00016974,2]
[403028228,1769085039492,-1493.0,0.00016986,2]
[403028229,1769085039501,-500.0,0.00017,3]
[403028230,1769085039511,-250.0,0.00017,2]
[403028231,1769085039519,-500.0,0.0001701,2]
[403028232,1769085039529,-150.0,0.00017029,2]
[403028233,1769085039538,-150.0,0.00017029,2]
[403028234,1769085039547,-3631.05713481,0.0001705,2]
[403028235,1769085039556,-177.73683657,0.00017064,2]
[403028236,1769085039565,-200.0,0.00017084,2]
[403028237,1769085039575,-8798.42902656,0.00017088,2]
[403028238,1769085039584,-315.0,0.0001716,2]
[403028239,1769085039593,-2303.5,0.00017248,2]
[403028240,1769085039602,-1493.0,0.0001726,2]
[403028241,1769085039612,-500.0,0.00017286,2]
[403028242,1769085039623,-8798.42902656,0.00017291,2]
[403028243,1769085039634,-152.12544444,0.00017399,2]
[403028244,1769085039644,-250.0,0.00017399,2]
[403028245,1769085039653,-150.0,0.00017399,2]
[403028246,1769085039664,-154.25849627,0.00017399,2]
[403028247,1769085039674,-500.0,0.00017399,2]
[403028248,1769085039685,-150.0,0.00017399,2]
[403028249,1769085039695,-150.0,0.00017399,2]
[403028250,1769085039704,-500.0,0.00017399,2]
[403028251,1769085039714,-150.0,0.00017454,2]
[403028252,1769085039723,-500.0,0.00017454,2]
[403028253,1769085039732,-150.0,0.00017454,2]
[403028254,1769085039741,-500.0,0.00017454,2]
[403028255,1769085039750,-8798.42902656,0.00017494,2]
[403028256,1769085039760,-1000.0,0.000175,3]
[403028257,1769085039769,-1800.0,0.000175,6]
[403028258,1769085039779,-503.44696293,0.00017502,2]
[403028259,1769085039788,-207.51653588,0.00017509,2]
[403028260,1769085039797,-500.0,0.00017509,2]
[403028261,1769085039806,-150.0,0.00017509,2]
[403028262,1769085039816,-1600.0,0.00017528,2]
[403028263,1769085039826,-420.0,0.00017533,2]
[403028264,1769085039835,-1493.0,0.00017534,2]
[403028265,1769085039844,-500.0,0.00017563,2]
[403028266,1769085039853,-150.0,0.00017563,2]
[403028267,1769085039862,-2700.0,0.000176,6]
[403028268,1769085039871,-500.0,0.00017618,2]
[403028269,1769085039881,-150.0,0.00017618,2]
[403028270,1769085039890,-1680.0,0.00017621,2]
[403028271,1769085039899,-300.0,0.00017641,2]
[403028273,1769085039908,-600.0,0.00017641,2]
[403028274,1769085039917,-195.0,0.00017641,2]
[403028275,1769085039927,-2500.0,0.00017641,2]
[403028276,1769085039935,-250.0,0.0001765,2]
[403028277,1769085039944,-500.0,0.00017673,2]
[403028278,1769085039953,-569.53871815,0.00017673,2]
[403028279,1769085039962,-500.0,0.00017673,2]
[403028280,1769085039971,-500.0,0.00017673,2]
[403028281,1769085039981,-509.50904316,0.00017673,2]
[403028282,1769085039990,-540.54661536,0.00017673,2]
[403028283,1769085039999,-501.64580082,0.00017673,2]
[403028284,1769085040007,-500.0,0.00017673,2]
[403028285,1769085040017,-500.0,0.00017673,2]
[403028286,1769085040026,-250.0,0.00017673,2]
[403028287,1769085040036,-195.0,0.0001768,2]
[403028288,1769085040046,-8798.42902656,0.00017697,2]
[403028289,1769085040055,-3700.0,0.000177,6]
[403028290,1769085040065,-500.0,0.00017728,2]
[403028292,1769085040074,-195.0,0.00017752,2]
[403028294,1769085040084,-600.0,0.00017752,2]
[403028295,1769085040093,-500.0,0.00017783,2]
[403028296,1769085040102,-4600.0,0.000178,6]
[403028297,1769085040111,-1493.0,0.00017808,2]
[403028298,1769085040120,-500.0,0.00017837,2]
[403028299,1769085040130,-1000.32393849,0.0001786,2]
[403028300,1769085040139,-500.0,0.00017892,2]
[403028301,1769085040148,-900.0,0.000179,6]
[403028302,1769085040158,-8798.42902656,0.000179,2]
[403028303,1769085040169,-4593.87483879,0.000179,2]
[403028304,1769085040178,-8442.82565771,0.000179,2]
[403028305,1769085040187,-153.77419055,0.000179,2]
[403028306,1769085040197,-193.2322498,0.000179,3]
[403028307,1769085040206,-505.55038648,0.00017947,2]
[403028308,1769085040215,-204.98273767,0.00017973,2]
[403028309,1769085040224,-1499.8265627,0.0001799,2]
[403028310,1769085040233,-1499.8265627,0.0001799,2]
[403028311,1769085040243,-249.22843217,0.00017999,2]
[403028313,1769085040251,-300.0,0.00017999,2]
[403028314,1769085040265,-4863428.52015023,0.00018,2]
[403028315,1769085040313,-423.81024343,0.00018,2]
[403028316,1769085040327,-10517.94673475,0.00018,2]
[403028317,1769085040339,-24418.91535953,0.00018,2]
[403028318,1769085040349,-2888.17197887,0.00018,2]
[403028319,1769085040918,-405.28705655,0.00018,2]
[403028320,1769085040936,-463.67418489,0.00018,2]
[403028325,1769085042367,-1.7e-07,0.00018,2]
[403028326,1769085042400,-51492.96222876,0.00018,2]
[403028327,1769085042415,-1941725.56822718,0.00018,2]
[403028328,1769085042426,-69380.48312257,0.00018,2]
[403028330,1769085042437,-1540496.44646223,0.00018,2]
[403028332,1769085042451,-330.0,0.00018,2]
[403028334,1769085042465,-9120.0,0.00018,2]
[403028335,1769085042478,-3336.62340853,0.00018,2]
[403028336,1769085042498,-273.47278806,0.00018,2]
[403028337,1769085042513,-1359.71344481,0.00018,2]
[403028338,1769085042527,-727.40483639,0.00018,2]
[403028339,1769085042540,-19401.56307888,0.00018,2]
[403028340,1769085042558,-481.57727047,0.00018,2]
[403028344,1769085044154,-637.71613557,0.00016137,2]
[403028345,1769085044163,-3784.71266837,0.00018,2]
[403028346,1769085044192,-637.41718911,0.00018,2]
[403028347,1769085044204,-1796.97144954,0.00018,2]
[403028348,1769085044214,-286.28539746,0.00018,2]
[403028349,1769085045458,-690.0388819,0.00016086,2]
[403028350,1769085045468,-2022.69663439,0.00018,2]
[403028351,1769085045672,-2000.0,0.00018,2]
[403028355,1769085068035,915.0,7.945e-05,2]
[403028356,1769085068057,5786.31129789,7.945e-05,2]
[403028357,1769085068079,794.70079611,7.945e-05,2]
[403028359,1769085139588,-787.54710019,0.00016038,2]
[403028360,1769085142226,-279.73508568,0.00016038,2]
[403028361,1769085144042,-300.39310472,0.00016038,2]
[403028362,1769085147068,-423.47885594,0.00016038,2]
[403028363,1769085151780,-253.16067858,0.00016038,2]
[403028364,1769085155246,-321.70298352,0.00016038,2]
[403028365,1769085156888,-191.61455368,0.00016038,2]
[403028366,1769085158423,-232.63347368,0.00016038,2]
[403028367,1769085161569,-169.88456738,0.00016038,2]
[403028368,1769085164354,-200.15428726,0.00016038,2]
[403028369,1769085166334,-272.43662925,0.00016038,2]
[403028370,1769085171134,-212.27077216,0.00016038,2]
[403028371,1769085172339,184.0,0.00015458,2]
[403028372,1769085172686,-209.21893678,0.00016038,2]
[403028373,1769085173328,184.0,0.00015966,2]
[403028374,1769085175513,-170.11123983,0.00016038,2]
[403028375,1769085177454,-221.84434696,0.00016038,2]
[403028376,1769085179626,-160.21303988,0.00016038,2]
[403028377,1769085181734,300.0,0.00016037,2]
[403028378,1769085182183,550.0,0.00016037,2]
[403028379,1769085182391,-152.59314192,0.00016038,2]
[403028380,1769085183727,300.0,0.00016037,2]
[403028381,1769085183879,-158.32296483,0.00016038,2]
[403028382,1769085187770,-176.30234567,0.00016038,2]
[403028383,1769085189306,-170.67193967,0.00016038,2]
[403028384,1769085190763,-184.87678679,0.00016038,2]
[403028385,1769085193235,-220.75764123,0.00016038,2]
[403028386,1769085197649,-179.11384868,0.00016038,2]
[403028387,1769085201441,-174.51467004,0.00016038,2]
[403028388,1769085202873,-254.84613125,0.00016038,2]
[403028389,1769085204962,-368.06536666,0.00016038,2]
[403028390,1769085205217,257.181034,0.00015958,2]
[403028391,1769085206988,-306.20878277,0.00016038,2]
[403028392,1769085210636,-370.527934,0.00016038,2]
[403028393,1769085213221,-314.736033,0.00016038,2]
[403028394,1769085215688,-164.736033,0.00016038,2]
[403028395,1769085217674,-302.19129105,0.00016038,2]
[403028396,1769085221891,-233.13295432,0.00016038,2]
[403028397,1769085223474,-93.21807963,0.00016038,2]
[403028398,1769085223500,-61.7616662,0.00016038,2]
[403028399,1769085225442,-196.76014019,0.00016038,2]
[403028400,1769085227598,-211.16229621,0.00016038,2]
[403028401,1769085230697,-335.52109047,0.00016038,2]
[403028402,1769085233905,-449.68701886,0.00016038,2]
[403028403,1769085238131,-1129.58360985,0.00016038,2]
[403028404,1769085239718,-233.6890208,0.00016038,2]
[403028405,1769085241779,-221.5918402,0.00016038,2]
[403028406,1769085243206,-175.19791443,0.00016038,2]
[403028407,1769085245075,-200.22499774,0.00016038,2]